bitfinex/quotes_SOLUSD_20250508
["timestamp","ask_amount","ask_price","bid_price","bid_amount"]
[1746672207732,12.51551592,149.96,149.92,19.18533737]
[1746672208922,38.51551592,149.97,149.93,12.51551592]
[1746672209333,31.68856887,150.0,149.94,12.51551592]
[1746672209534,44.20408479,150.0,149.95,12.51551592]
[1746672209840,25.02174794,150.0,149.96,12.51551592]
[1746672210013,25.02174794,150.0,149.97,12.51551592]
[1746672210205,12.51551592,150.01,149.97,12.51551592]
[1746672210401,38.51551592,150.02,149.98,12.51551592]
[1746672210607,44.20273631,150.03,149.98,12.51551592]
[1746672211211,1.6575,150.05,150.0,12.51551592]
[1746672211425,12.51551592,150.04,150.0,12.51551592]
[1746672211614,12.51551592,150.03,149.99,12.51551592]
[1746672211819,12.51551592,150.03,149.97,6.66795572]
[1746672211820,12.51551592,150.02,149.97,12.51551592]
[1746672212832,12.51551592,150.01,149.97,12.51551592]
[1746672214038,12.51551592,150.0,149.96,12.51551592]
[1746672214331,12.51551592,150.01,149.96,12.51551592]
[1746672215028,19.18176853,150.01,149.96,19.18379425]
[1746672215239,44.20273626,150.03,149.98,12.51551592]
[1746672216225,31.68722034,150.03,149.98,12.51551592]
[1746672216433,44.20273626,150.03,149.98,19.18302022]
[1746672217035,12.51551592,150.02,149.98,19.18302022]
[1746672217630,12.51551592,150.02,149.98,12.51551592]
[1746672218115,12.51551592,150.02,149.98,19.18303826]
[1746672225340,31.68722034,150.03,149.98,19.18303826]
[1746672225557,37.53726386,150.03,149.99,12.51551592]
[1746672225841,44.20274799,150.03,149.99,12.51551592]
[1746672226217,12.51551592,150.02,149.98,12.51551592]
[1746672227642,12.51551592,150.02,149.98,19.18292316]
[1746672228939,37.53726386,150.03,149.98,19.18292316]
[1746672229145,37.53726386,150.03,149.99,12.51551592]
[1746672229939,37.53726386,150.03,149.99,19.18229799]
[1746672230148,12.51551592,150.03,149.99,19.18229799]
[1746672230528,12.51551592,150.01,149.98,6.66741906]
[1746672231350,6.6653793,150.03,149.98,6.66741906]
[1746672231523,12.51551592,150.01,149.97,6.66782299]
[1746672231726,12.51551592,150.01,149.97,19.18333891]
[1746672233054,12.51551592,150.02,149.98,12.51551592]
[1746672233546,27.6575,150.05,150.0,12.51551592]
[1746672233725,38.51551592,150.05,150.0,12.51551592]
[1746672233926,26.65524794,150.09,150.04,12.51551592]
[1746672234131,12.51551592,150.08,150.0,19.32434415]
[1746672234333,12.51551592,150.08,150.04,12.51551592]
[1746672234750,65.17076386,150.09,150.04,12.51551592]
[1746672235141,26.65524794,150.09,150.0,35.99101081]
[1746672235348,39.17076386,150.09,150.05,12.51551592]
[1746672235649,12.51551592,150.08,150.03,12.51551592]
[1746672235841,12.51551592,150.07,150.03,12.51551592]
[1746672236037,12.51551592,150.06,150.01,12.51551592]
[1746672236246,12.51551592,150.05,150.01,6.66622225]
[1746672236448,12.51551592,150.03,150.0,6.66665018]
[1746672236651,12.51551592,150.02,150.0,6.66665018]
[1746672237248,12.51551592,150.02,149.99,6.66704782]
[1746672238228,12.51551592,150.02,149.97,23.33690428]
[1746672238432,12.51551592,150.02,149.98,12.51551592]
[1746672239755,12.51551592,150.02,149.97,19.18351618]
[1746672240648,12.51551592,150.02,149.98,12.51551592]
[1746672241255,49.8779968,150.05,149.98,12.51551592]
[1746672241431,12.51551592,150.03,149.99,12.51551592]
[1746672241832,12.51551592,150.04,150.0,12.51551592]
[1746672242657,37.53726386,150.05,150.01,19.18173817]
[1746672244154,37.53726386,150.05,150.01,6.66622225]
[1746672245544,12.51551592,150.04,150.01,6.66622225]
[1746672248258,25.02174794,150.05,150.0,12.51551592]
[1746672248259,12.51551592,150.03,150.0,6.66653478]
[1746672249662,12.51551592,150.04,150.0,6.66653478]
[1746672250860,37.53726386,150.05,150.01,12.51551592]
[1746672252142,12.51551592,150.04,150.0,19.1820507]
[1746672254370,12.51551592,150.03,149.99,19.18243654]
[1746672255248,12.51551592,150.04,150.0,12.51551592]
[1746672255452,12.51551592,150.01,149.96,26.0]
[1746672255661,12.51551592,150.01,149.96,38.51551592]
[1746672255850,33.26758366,150.04,149.97,12.51551592]
[1746672256059,8.2118348,150.04,149.99,12.51551592]
[1746672256265,31.68628835,150.05,150.0,12.51551592]
[1746672256440,12.51551592,150.04,149.99,12.51551592]
[1746672258868,12.51551592,150.04,149.99,19.18223586]
[1746672259161,37.53726386,150.05,150.0,12.51551592]
[1746672259350,25.02174794,150.05,150.01,12.51551592]
[1746672259853,12.51551592,150.06,150.02,12.51551592]
[1746672261066,12.51551592,150.06,150.01,12.51551592]
[1746672261245,12.51551592,150.06,150.0,12.51551592]
[1746672261246,12.51551592,150.05,150.0,12.51551592]
[1746672261846,12.51551592,150.05,150.01,12.51551592]
[1746672262343,6.663557,150.07,150.01,19.1814991]
[1746672262655,12.51551592,150.06,150.01,19.1814991]
[1746672263069,12.51551592,150.07,150.03,12.51551592]
[1746672263360,51.02174794,150.08,150.04,12.51551592]
[1746672263747,63.53726386,150.08,150.04,12.51551592]
[1746672263949,63.53726386,150.08,150.03,12.51551592]
[1746672264574,63.53726386,150.08,150.04,6.66488936]
[1746672265564,51.02174794,150.08,150.04,6.66488936]
[1746672265756,63.53726386,150.08,150.04,6.66488936]
[1746672267269,51.02174794,150.08,150.04,19.18040528]
[1746672267473,51.02174794,150.08,150.05,12.51551592]
[1746672268482,63.53726386,150.08,150.04,12.51551592]
[1746672269688,63.53726386,150.08,150.04,19.18000918]
[1746672270380,25.02174794,150.11,150.06,12.51551592]
[1746672270588,25.02174794,150.11,150.07,12.51551592]
[1746672270959,37.53726386,150.11,150.07,12.51551592]
[1746672271478,25.02174794,150.11,150.08,12.51551592]
[1746672272184,17.44,150.15,150.09,12.51551592]
[1746672272372,12.51551592,150.14,150.1,12.51551592]
[1746672273176,39.35186622,150.16,150.1,12.51551592]
[1746672273385,25.02174794,150.16,150.11,12.51551592]
[1746672273567,25.02174794,150.16,150.08,6.66304432]
[1746672273568,12.51551592,150.14,150.1,12.51551592]
[1746672273876,12.51551592,150.14,150.09,19.17787721]
[1746672274066,12.51551592,150.13,150.08,19.17851606]
[1746672274382,12.51551592,150.12,150.06,6.66360227]
[1746672274674,12.51551592,150.12,150.08,12.51551592]
[1746672275553,19.17659839,150.13,150.09,12.51551592]
[1746672275761,6.66108247,150.13,150.09,12.51551592]
[1746672276090,12.51551592,150.12,150.08,19.17851742]
[1746672276571,12.51551592,150.13,150.09,12.51551592]
[1746672276764,12.51551592,150.12,150.08,19.17851742]
[1746672280278,12.51551592,150.12,150.05,92.6609641]
[1746672280279,19.17685743,150.12,150.07,19.17895774]
[1746672280477,19.17685743,150.12,150.08,12.51551592]
[1746672281185,12.51551592,150.12,150.08,12.51551592]
[1746672281869,6.66101307,150.13,150.08,12.51551592]
[1746672282076,33.23044794,150.15,150.09,12.51551592]
[1746672282255,33.23044794,150.15,150.1,12.51551592]
[1746672282455,12.51551592,150.14,150.1,19.17752857]
[1746672282680,12.51551592,150.13,150.1,6.66201265]
[1746672285283,12.51551592,150.13,150.09,6.66259146]
[1746672285663,12.51551592,150.12,150.08,6.66296713]
[1746672285866,12.51551592,150.1,150.05,125.46001513]
[1746672286189,12.51551592,150.1,150.06,19.17951698]
[1746672286371,51.8800968,150.15,150.07,12.51551592]
[1746672286372,12.51551592,150.11,150.07,12.51551592]
[1746672286689,12.51551592,150.1,150.06,19.17951698]
[1746672286889,12.51551592,150.07,150.04,6.66488936]
[1746672287092,12.51551592,150.06,150.03,6.66525]
[1746672287267,12.51551592,150.06,150.02,6.66562002]
[1746672287466,12.51551592,150.05,150.02,6.66562002]
[1746672290090,12.51551592,150.06,150.02,6.66562002]
[1746672290291,12.51551592,150.06,150.02,19.18113594]
[1746672290796,12.51551592,150.05,150.0,17.36]
[1746672290989,6.663113,150.08,150.0,17.36]
[1746672290990,12.51551592,150.04,150.01,6.66606267]
[1746672291198,12.51551592,150.05,150.01,19.18157859]
[1746672295287,12.51551592,150.05,150.01,6.66606267]
[1746672295593,12.51551592,150.05,150.01,19.18157859]
[1746672298198,12.51551592,150.05,150.01,12.51551592]
[1746672298378,12.51551592,150.04,150.0,6.66650411]
[1746672298578,12.51551592,150.04,150.0,19.18202003]
[1746672300203,12.51551592,150.05,150.0,19.18202003]
[1746672300891,12.51551592,150.04,150.0,19.18202003]
[1746672302541,12.51551592,150.03,149.96,25.2828]
[1746672302803,31.68589506,150.06,149.99,12.51551592]
[1746672302980,12.51551592,150.04,149.99,12.51551592]
[1746672304002,31.68589506,150.06,150.0,6.66666666]
[1746672304191,12.51551592,150.04,150.0,19.18218258]
[1746672304580,25.02174794,150.06,150.02,12.51551592]
[1746672304774,32.6631822,150.08,150.02,12.51551592]
[1746672305010,12.51551592,150.07,150.02,12.51551592]
[1746672305307,12.51551592,150.06,150.02,12.51551592]
[1746672305606,12.51551592,150.07,150.0,6.66666666]
[1746672305804,12.51551592,150.05,150.0,19.18218258]
[1746672306001,12.51551592,150.06,150.01,12.51551592]
[1746672306186,12.51551592,150.06,150.02,12.51551592]
[1746672306397,12.51551592,150.06,150.01,12.51551592]
[1746672307415,12.51551592,150.06,150.01,19.18145813]
[1746672307616,19.17953228,150.06,150.01,19.18145813]
[1746672307915,32.66324298,150.08,150.02,12.51551592]
[1746672308123,12.51551592,150.07,150.03,12.51551592]
[1746672308299,45.1787589,150.08,150.03,12.51551592]
[1746672308817,32.66324298,150.08,150.03,12.51551592]
[1746672309004,12.51551592,150.07,150.03,12.51551592]
[1746672309324,32.66324298,150.08,150.03,12.51551592]
[1746672309499,12.51551592,150.08,150.04,12.51551592]
[1746672310196,25.02174794,150.09,150.06,12.51551592]
[1746672310400,6.66211273,150.11,150.06,12.51551592]
[1746672310401,19.17762865,150.11,150.06,12.51551592]
[1746672310607,12.51551592,150.1,150.06,12.51551592]
[1746672312124,12.51551592,150.1,150.06,19.17941853]
[1746672313121,25.02174794,150.12,150.08,12.51551592]
[1746672313323,37.53726386,150.12,150.08,12.51551592]
[1746672313500,25.02174794,150.12,150.08,19.17854198]
[1746672313825,34.00852378,150.17,150.09,12.51551592]
[1746672313826,32.66015605,150.15,150.09,12.51551592]
[1746672314118,12.51551592,150.14,150.09,12.51551592]
[1746672314504,12.51551592,150.13,150.09,12.51551592]
[1746672315117,12.51551592,150.12,150.07,6.6635231]
[1746672315305,12.51551592,150.1,150.07,6.6635231]
[1746672315508,12.51551592,150.11,150.07,12.51551592]
[1746672316119,12.51551592,150.13,150.09,12.51551592]
[1746672316525,32.66017415,150.15,150.1,12.51551592]
[1746672316695,12.51551592,150.14,150.1,12.51551592]
[1746672316895,31.68158879,150.16,150.1,12.51551592]
[1746672317122,12.51551592,150.15,150.11,12.51551592]
[1746672317539,12.51551592,150.14,150.11,6.66177968]
[1746672317824,12.51551592,150.14,150.1,6.6620623]
[1746672318525,12.51551592,150.14,150.1,19.17757822]
[1746672318810,31.68138519,150.16,150.1,19.17757822]
[1746672319019,12.51551592,150.14,150.1,19.17757822]
[1746672320023,25.02174794,150.16,150.11,12.51551592]
[1746672320228,12.51551592,150.15,150.11,12.51551592]
[1746672320427,12.51551592,150.14,150.1,19.17757822]
[1746672321021,12.51551592,150.15,150.11,12.51551592]
[1746672321815,12.51551592,150.14,150.1,19.17757822]
[1746672322542,12.51551592,150.15,150.11,12.51551592]
[1746672322705,25.02174794,150.16,150.11,12.51551592]
[1746672323002,12.51551592,150.15,150.11,12.51551592]
[1746672324509,12.51551592,150.15,150.11,19.17710392]
[1746672325025,25.02174794,150.16,150.11,19.17710392]
[1746672325232,31.68133526,150.16,150.11,6.661588]
[1746672325427,12.51551592,150.15,150.11,19.17710392]
[1746672326317,6.65958732,150.16,150.11,19.17710392]
[1746672326633,12.51551592,150.16,150.11,19.17710392]
[1746672326932,34.32168302,150.17,150.12,12.51551592]
[1746672327122,12.51551592,150.16,150.12,12.51551592]
[1746672327805,12.51551592,150.16,150.12,19.17681844]
[1746672328834,12.51551592,150.17,150.13,12.51551592]
[1746672329238,31.68012176,150.19,150.13,12.51551592]
[1746672329536,12.51551592,150.18,150.13,12.51551592]
[1746672330329,12.51551592,150.18,150.14,12.51551592]
[1746672330538,6.65791226,150.2,150.15,12.51551592]
[1746672330835,12.51551592,150.2,150.16,12.51551592]
[1746672331027,12.51551592,150.2,150.15,12.51551592]
[1746672331823,12.51551592,150.2,150.15,19.17516575]
[1746672332125,12.51551592,150.2,150.16,12.51551592]
[1746672332634,12.51551592,150.21,150.16,12.51551592]
[1746672332938,12.51551592,150.2,150.16,12.51551592]
[1746672333540,38.22981082,150.22,150.16,12.51551592]
[1746672334022,12.51551592,150.2,150.16,19.17482454]
[1746672334531,12.51551592,150.21,150.16,19.17482454]
[1746672334741,38.22981082,150.22,150.16,19.17482454]
[1746672335037,12.51551592,150.21,150.16,19.17482454]
[1746672335541,12.51551592,150.2,150.16,19.17482454]
[1746672336215,12.51551592,150.21,150.16,19.17482454]
[1746672336415,12.51551592,150.21,150.17,12.51551592]
[1746672337740,37.53726386,150.22,150.18,12.51551592]
[1746672338230,25.02174794,150.22,150.18,12.51551592]
[1746672338435,37.53726386,150.22,150.18,12.51551592]
[1746672338740,31.67868309,150.22,150.18,12.51551592]
[1746672338933,44.19419901,150.22,150.18,12.51551592]
[1746672339235,25.02174794,150.22,150.2,12.51551592]
[1746672339538,14.03921592,150.25,150.21,12.51551592]
[1746672339939,14.03921592,150.25,150.21,19.17267059]
[1746672340113,6.65517343,150.26,150.21,19.17267059]
[1746672340314,12.51551592,150.25,150.21,6.65715467]
[1746672341136,12.51551592,150.24,150.2,19.17313273]
[1746672341329,12.51551592,150.24,150.2,6.65761681]
[1746672341835,12.51551592,150.24,150.2,19.17313273]
[1746672342046,32.65529434,150.26,150.2,19.17313273]
[1746672342343,12.51551592,150.25,150.2,19.17313273]
[1746672342722,12.51551592,150.24,150.2,19.17313273]
[1746672345134,12.51551592,150.25,150.21,12.51551592]
[1746672345456,12.51551592,150.25,150.21,19.17281453]
[1746672346541,32.65526252,150.26,150.21,19.17281453]
[1746672346742,12.51551592,150.25,150.2,12.51551592]
[1746672346947,12.51551592,150.24,150.2,12.51551592]
[1746672348270,12.51551592,150.22,150.17,6.65911966]
[1746672348434,12.51551592,150.21,150.17,6.65911966]
[1746672348632,12.51551592,150.22,150.19,6.6582329]
[1746672349254,12.51551592,150.22,150.18,19.17402217]
[1746672350547,19.1720578,150.23,150.18,6.65850625]
[1746672350738,19.1720578,150.23,150.18,19.17402217]
[1746672351158,12.51551592,150.22,150.18,19.17402217]
[1746672351955,6.65601703,150.24,150.18,6.65850625]
[1746672352140,12.51551592,150.22,150.18,19.17402217]
[1746672352863,12.51551592,150.23,150.19,12.51551592]
[1746672353038,12.51551592,150.23,150.19,19.173658]
[1746672353553,19.17204802,150.23,150.19,12.51551592]
[1746672353860,12.51551592,150.22,150.18,19.17411953]
[1746672356771,12.51551592,150.2,150.14,60.07254058]
[1746672357075,12.51551592,150.2,150.16,12.51551592]
[1746672357277,12.51551592,150.21,150.17,19.17463558]
[1746672358169,19.17248301,150.22,150.17,19.17463558]
[1746672358343,12.51551592,150.2,150.17,6.65911966]
[1746672358538,12.51551592,150.19,150.15,6.65982624]
[1746672358770,12.51551592,150.18,150.15,6.65982624]
[1746672359553,12.51551592,150.19,150.15,6.65982624]
[1746672360065,12.51551592,150.19,150.15,19.17534216]
[1746672360371,6.65801812,150.2,150.15,19.17534216]
[1746672360674,12.51551592,150.19,150.15,19.17534216]
[1746672361043,6.6569032,150.22,150.15,19.17534216]
[1746672361247,25.30655206,150.22,150.16,12.51551592]
[1746672361474,12.51551592,150.19,150.15,19.17534216]
[1746672364176,12.51551592,150.2,150.15,19.17534216]
[1746672365484,12.51551592,150.19,150.15,19.17534216]
[1746672367086,6.65783616,150.2,150.16,12.51551592]
[1746672367385,19.17335208,150.2,150.16,12.51551592]
[1746672367595,12.51551592,150.2,150.16,12.51551592]
[1746672367873,12.51551592,150.22,150.18,12.51551592]
[1746672368288,57.67831071,150.23,150.18,12.51551592]
[1746672368794,63.53726386,150.23,150.19,12.51551592]
[1746672369089,12.51551592,150.22,150.18,6.65828746]
[1746672369252,12.51551592,150.22,150.18,19.17380338]
[1746672369894,63.53726386,150.23,150.19,12.51551592]
[1746672370052,12.51551592,150.22,150.18,19.17380338]
[1746672372279,12.51551592,150.2,150.16,6.65912487]
[1746672372489,12.51551592,150.21,150.17,12.51551592]
[1746672372979,12.51551592,150.2,150.16,12.51551592]
[1746672373179,12.51551592,150.18,150.14,6.66030408]
[1746672373382,12.51551592,150.16,150.11,12.51551592]
[1746672373583,12.51551592,150.14,150.09,36.37809559]
[1746672373886,12.51551592,150.12,150.08,19.17845769]
[1746672374098,12.51551592,150.12,150.08,6.66294177]
[1746672374273,12.51551592,150.13,150.08,19.17845769]
[1746672374903,12.51551592,150.1,150.06,6.66400106]
[1746672375067,26.0,150.13,150.06,6.66400106]
[1746672375068,12.51551592,150.11,150.06,6.66400106]
[1746672375267,12.51551592,150.11,150.06,19.17951698]
[1746672375468,6.66144202,150.12,150.06,6.66400106]
[1746672375778,12.51551592,150.12,150.08,12.51551592]
[1746672376588,19.17688326,150.12,150.08,12.51551592]
[1746672377098,12.51551592,150.11,150.04,32.6645149]
[1746672377472,12.51551592,150.1,150.04,32.6645149]
[1746672377670,12.51551592,150.1,150.06,12.51551592]
[1746672378494,12.51551592,150.11,150.06,12.51551592]
[1746672378680,33.33291528,150.12,150.08,12.51551592]
[1746672378870,45.8484312,150.12,150.08,12.51551592]
[1746672380084,45.8484312,150.12,150.05,6.66444518]
[1746672380491,45.8484312,150.12,150.07,12.51551592]
[1746672380667,45.8484312,150.12,150.08,12.51551592]
[1746672381893,26.67154794,150.12,150.09,12.51551592]
[1746672383981,33.33301974,150.12,150.09,12.51551592]
[1746672384300,45.84853566,150.12,150.08,12.51551592]
[1746672384603,26.0,150.13,150.11,12.51551592]
[1746672384810,57.68191906,150.15,150.12,12.51551592]
[1746672385274,70.19743498,150.15,150.11,12.51551592]
[1746672386302,12.51551592,150.13,150.09,12.51551592]
[1746672386504,12.51551592,150.12,150.08,12.51551592]
[1746672387904,19.17716411,150.12,150.08,12.51551592]
[1746672388599,6.66164819,150.12,150.09,12.51551592]
[1746672388802,19.17716411,150.12,150.08,12.51551592]
[1746672389215,19.17716411,150.12,150.04,26.0]
[1746672389396,12.51551592,150.1,150.06,12.51551592]
[1746672390116,19.17729728,150.11,150.07,12.51551592]
[1746672390400,19.17729728,150.11,150.04,32.6644625]
[1746672390401,6.66178136,150.11,150.08,12.51551592]
[1746672391585,19.17692977,150.12,150.08,12.51551592]
[1746672393983,19.17692977,150.12,150.07,6.66348953]
[1746672394384,19.17692977,150.12,150.08,12.51551592]
[1746672395701,31.68264637,150.13,150.08,19.17850913]
[1746672395898,31.68264637,150.13,150.09,12.51551592]
[1746672396099,44.19816229,150.13,150.09,12.51551592]
[1746672396297,12.51551592,150.12,150.04,16.66217089]
[1746672396510,12.51551592,150.1,150.05,6.66444518]
[1746672396818,12.51551592,150.11,150.07,12.51551592]
[1746672397319,12.51551592,150.12,150.08,12.51551592]
[1746672397819,19.17696606,150.12,150.08,12.51551592]
[1746672398393,26.0,150.09,150.02,8.29910421]
[1746672398599,12.51551592,150.08,150.02,8.29910421]
[1746672398799,25.02174794,150.1,150.05,12.51551592]
[1746672399013,37.53726386,150.1,150.06,12.51551592]
[1746672399407,25.02174794,150.1,150.07,12.51551592]
[1746672400323,37.53726386,150.1,150.05,6.66435785]
[1746672400500,37.53726386,150.1,150.06,12.51551592]
[1746672400704,25.02174794,150.1,150.06,12.51551592]
[1746672401914,25.02174794,150.1,150.05,6.66435785]
[1746672402113,25.02174794,150.1,150.06,12.51551592]
[1746672403406,25.02174794,150.1,150.05,6.66435785]
[1746672403407,37.53726386,150.1,150.05,6.66435785]
[1746672403606,37.53726386,150.1,150.06,12.51551592]
[1746672404526,37.53726386,150.1,150.05,6.66435785]
[1746672404915,37.53726386,150.1,150.06,12.51551592]
[1746672405526,44.19949996,150.1,150.06,12.51551592]
[1746672405722,44.19949996,150.1,150.03,12.51551592]
[1746672405723,12.51551592,150.08,150.03,12.51551592]
[1746672406028,12.51551592,150.08,150.04,12.51551592]
[1746672407016,19.17876743,150.08,150.03,12.51551592]
[1746672407221,20.71241,150.09,150.05,12.51551592]
[1746672407918,12.51551592,150.08,150.04,12.51551592]
[1746672408528,8.19689408,150.09,150.04,12.51551592]
[1746672408734,20.71241,150.09,150.04,12.51551592]
[1746672409231,20.71241,150.09,150.04,19.18034579]
[1746672409535,12.51551592,150.08,150.04,12.51551592]
[1746672411411,12.51551592,150.06,150.0,32.1919]
[1746672411613,37.53726386,150.08,150.04,12.51551592]
[1746672411820,25.02174794,150.08,150.06,12.51551592]
[1746672412017,32.66192135,150.11,150.06,12.51551592]
[1746672412234,12.51551592,150.1,150.06,12.51551592]
[1746672413440,19.17790974,150.1,150.06,12.51551592]
[1746672414229,45.17740242,150.11,150.07,12.51551592]
[1746672415432,45.17740242,150.11,150.04,6.66488936]
[1746672415734,32.6618865,150.11,150.04,6.66488936]
[1746672415920,45.17740242,150.11,150.06,12.51551592]
[1746672416316,12.51551592,150.1,150.06,12.51551592]
[1746672416612,32.6618865,150.11,150.06,12.51551592]
[1746672416812,19.17740242,150.11,150.07,12.51551592]
[1746672417020,19.17740242,150.11,150.04,6.66488936]
[1746672417335,19.17740242,150.11,150.06,12.51551592]
[1746672418231,12.51551592,150.11,150.07,12.51551592]
[1746672418416,70.19877296,150.12,150.08,12.51551592]
[1746672418838,51.02174794,150.12,150.09,12.51551592]
[1746672419133,51.02174794,150.12,150.1,12.51551592]
[1746672419134,26.0,150.12,150.1,12.51551592]
[1746672419922,6.66073542,150.14,150.1,12.51551592]
[1746672420131,87.35745592,150.15,150.11,12.51551592]
[1746672420740,74.84194,150.15,150.11,12.51551592]
[1746672421107,57.68194,150.15,150.11,12.51551592]
[1746672421947,51.02174794,150.15,150.11,12.51551592]
[1746672422109,8.2803641,150.17,150.14,12.51551592]
[1746672422312,31.68048238,150.18,150.14,12.51551592]
[1746672422512,31.68048238,150.18,150.15,12.51551592]
[1746672422722,57.68048238,150.18,150.15,12.51551592]
[1746672423036,57.68048238,150.18,150.14,12.51551592]
[1746672423540,1.663,150.21,150.17,12.51551592]
[1746672423541,33.34224001,150.21,150.17,12.51551592]
[1746672423729,25.02174794,150.21,150.19,12.51551592]
[1746672423916,25.02174794,150.21,150.17,12.51551592]
[1746672424116,37.53726386,150.21,150.17,12.51551592]
[1746672424435,44.1947462,150.21,150.17,12.51551592]
[1746672424640,37.53726386,150.21,150.17,12.51551592]
[1746672426241,44.19468917,150.21,150.17,12.51551592]
[1746672429842,44.19468917,150.21,150.16,12.51551592]
[1746672430629,12.51551592,150.17,150.08,74.93287107]
[1746672430829,26.0,150.19,150.14,12.51551592]
[1746672431039,38.51551592,150.19,150.15,12.51551592]
[1746672431939,45.17392206,150.19,150.14,12.51551592]
[1746672432134,45.17392206,150.19,150.13,6.66057173]
[1746672432135,12.51551592,150.17,150.13,12.51551592]
[1746672432331,12.51551592,150.17,150.12,12.51551592]
[1746672433352,12.51551592,150.13,150.09,1.569]
[1746672433533,12.51551592,150.12,150.06,6.66400106]
[1746672433733,12.51551592,150.13,150.09,12.51551592]
[1746672433931,12.51551592,150.14,150.09,12.51551592]
[1746672434433,12.51551592,150.13,150.09,12.51551592]
[1746672434633,12.51551592,150.13,150.08,6.66295768]
[1746672434853,12.51551592,150.13,150.09,12.51551592]
[1746672435354,51.02174794,150.16,150.12,12.51551592]
[1746672435531,63.53726386,150.16,150.12,12.51551592]
[1746672435933,51.02174794,150.16,150.12,12.51551592]
[1746672436133,63.53726386,150.16,150.12,12.51551592]
[1746672436753,63.53726386,150.16,150.08,35.83625611]
[1746672436754,70.19696484,150.16,150.08,23.32074019]
[1746672437058,12.51551592,150.14,150.1,12.51551592]
[1746672437258,12.51551592,150.15,150.1,12.51551592]
[1746672437433,12.51551592,150.15,150.11,12.51551592]
[1746672440151,12.51551592,150.15,150.11,19.17713478]
[1746672440334,57.68145051,150.16,150.13,12.51551592]
[1746672440335,25.02174794,150.16,150.13,12.51551592]
[1746672440532,43.1,150.18,150.14,12.51551592]
[1746672440735,55.61551592,150.18,150.14,12.51551592]
[1746672441050,38.51551592,150.18,150.14,12.51551592]
[1746672441236,26.0,150.18,150.14,19.17580104]
[1746672442054,26.0,150.18,150.15,12.51551592]
[1746672443334,67.38845791,150.22,150.17,12.51551592]
[1746672443535,63.53726386,150.22,150.17,12.51551592]
[1746672443850,63.53726386,150.22,150.18,12.51551592]
[1746672444162,44.19428577,150.22,150.17,12.51551592]
[1746672444454,12.51551592,150.21,150.17,12.51551592]
[1746672445062,57.67876985,150.22,150.17,12.51551592]
[1746672445264,70.19428577,150.22,150.17,19.17461984]
[1746672445560,70.19429738,150.22,150.18,12.51551592]
[1746672446356,63.53726386,150.22,150.18,12.51551592]
[1746672447459,1.6413,150.24,150.2,12.51551592]
[1746672447656,6.65610989,150.24,150.21,12.51551592]
[1746672448047,6.65610989,150.24,150.2,12.51551592]
[1746672449648,32.65567827,150.25,150.22,12.51551592]
[1746672449955,25.02174794,150.26,150.23,12.51551592]
[1746672450137,25.02174794,150.26,150.24,12.51551592]
[1746672450457,37.53726386,150.26,150.22,12.51551592]
[1746672450657,44.19257263,150.26,150.22,12.51551592]
[1746672450841,44.19257263,150.26,150.21,12.51551592]
[1746672451241,44.19257263,150.26,150.22,12.51551592]
[1746672452345,31.67705671,150.26,150.24,12.51551592]
[1746672452546,46.81239615,150.28,150.24,12.51551592]
[1746672452757,45.17009615,150.28,150.24,12.51551592]
[1746672453554,45.17009615,150.28,150.2,6.6576315]
[1746672453555,12.51551592,150.26,150.2,6.6576315]
[1746672453760,12.51551592,150.26,150.22,12.51551592]
[1746672453941,19.1708674,150.26,150.22,12.51551592]
[1746672455462,19.1708674,150.26,150.19,6.1309]
[1746672455666,6.65535148,150.26,150.23,12.51551592]
[1746672455843,19.17036907,150.27,150.22,12.51551592]
[1746672456439,12.51551592,150.26,150.22,12.51551592]
[1746672457066,19.17036907,150.27,150.23,12.51551592]
[1746672457766,19.17036907,150.27,150.22,12.51551592]
[1746672458060,12.51551592,150.26,150.22,12.51551592]
[1746672459172,19.17077286,150.26,150.22,12.51551592]
[1746672459362,6.65525694,150.26,150.22,12.51551592]
[1746672459670,19.17034923,150.27,150.22,12.51551592]
[1746672459870,12.51551592,150.26,150.22,12.51551592]
[1746672461147,19.17101111,150.26,150.22,12.51551592]
[1746672462572,12.51551592,150.26,150.22,12.51551592]
[1746672462774,19.17030342,150.27,150.22,19.17232526]
[1746672463476,32.65438167,150.28,150.23,12.51551592]
[1746672463674,45.16989759,150.28,150.23,12.51551592]
[1746672464850,12.51551592,150.27,150.23,12.51551592]
[1746672465173,12.51551592,150.25,150.21,12.51551592]
[1746672465369,12.51551592,150.25,150.19,6.1309]
[1746672465560,12.51551592,150.25,150.2,12.51551592]
[1746672466576,6.65601703,150.24,150.2,12.51551592]
[1746672467071,12.51551592,150.23,150.19,12.51551592]
[1746672468075,19.17153295,150.24,150.2,12.51551592]
[1746672468258,45.17118939,150.25,150.21,12.51551592]
[1746672468459,12.51551592,150.24,150.2,12.51551592]
[1746672468659,12.51551592,150.23,150.16,6.65956313]
[1746672468973,12.51551592,150.21,150.17,12.51551592]
[1746672473195,12.51551592,150.21,150.17,19.17462772]
[1746672473477,19.17301267,150.21,150.17,12.51551592]
[1746672473682,19.17301267,150.21,150.15,8.16597587]
[1746672473986,19.17301267,150.21,150.17,12.51551592]
[1746672474167,19.17256578,150.22,150.18,12.51551592]
[1746672474984,12.51551592,150.21,150.17,12.51551592]